bitfinex/quotes_ETHUSD_20220202
["timestamp","ask_amount","ask_price","bid_price","bid_amount"]
[1643796461387,4.36352612,2769.3,2769.2,0.3]
[1643796461589,2.52921096,2769.3,2769.2,0.3]
[1643796461788,4.35609895,2769.3,2769.2,0.3]
[1643796461993,4.65609895,2769.3,2769.2,0.3]
[1643796462640,4.65609895,2769.3,2769.1,0.08728323]
[1643796462846,4.53020184,2769.2,2769.1,0.08728323]
[1643796464945,2.52921096,2769.2,2769.1,0.08728323]
[1643796465347,1.52921096,2769.2,2769.1,0.08728323]
[1643796465544,1.52921096,2769.3,2769.1,0.08728323]
[1643796465945,3.359983,2769.3,2769.1,0.08728323]
[1643796466193,1.52921096,2769.2,2769.1,0.08728323]
[1643796466789,2.52921096,2769.5,2769.1,0.08728323]
[1643796466990,1.52921096,2769.4,2769.1,0.08728323]
[1643796467594,1.83124308,2769.3,2769.1,0.08728323]
[1643796467793,1.52921096,2769.2,2769.1,0.08728323]
[1643796467999,1.52921096,2769.4,2769.1,0.08728323]
[1643796469195,1.52921096,2769.3,2769.1,0.08728323]
[1643796469394,1.52921096,2769.2,2769.1,0.08728323]
[1643796469858,1.99228395,2769.2,2769.1,0.08728323]
[1643796470053,3.52149491,2769.2,2769.1,0.08728323]
[1643796470253,4.52149491,2769.2,2769.1,0.08728323]
[1643796470451,3.52149491,2769.2,2769.1,0.08728323]
[1643796470653,1.52921096,2769.2,2769.1,0.08728323]
[1643796471452,3.45191905,2769.2,2769.1,0.08728323]
[1643796471653,1.52921096,2769.2,2769.1,0.08728323]
[1643796471854,1.52921096,2769.3,2769.1,0.08728323]
[1643796472255,1.8201164,2769.2,2769.1,0.08728323]
[1643796472463,3.34932736,2769.2,2769.1,0.08728323]
[1643796473059,0.68475688,2769.3,2769.1,0.08728323]
[1643796473260,0.68475688,2769.4,2769.1,0.08728323]
[1643796473459,2.38815688,2769.5,2769.1,0.08728323]
[1643796473691,1.38815688,2769.5,2769.1,0.08728323]
[1643796473897,0.68475688,2769.4,2769.1,0.08728323]
[1643796474093,1.20775688,2769.5,2769.1,0.08728323]
[1643796474294,0.68475688,2769.4,2769.1,0.08728323]
[1643796476495,0.523,2769.5,2769.1,0.08728323]
[1643796476496,1.20775688,2769.5,2769.1,0.08728323]
[1643796476696,1.20775688,2769.5,2769.1,0.5035069]
[1643796476697,0.68475688,2769.5,2769.1,0.5035069]
[1643796476899,0.86515688,2769.6,2769.1,0.08728323]
[1643796477337,0.68475688,2769.5,2769.1,0.08728323]
[1643796479444,0.68475688,2769.3,2769.1,0.08728323]
[1643796482805,0.68475688,2769.4,2768.9,1.20299]
[1643796483802,0.68475688,2769.3,2769.1,1.80599]
[1643796484203,0.68475688,2769.3,2769.2,0.3]
[1643796486045,2.52829683,2769.3,2769.2,0.3]
[1643796487247,3.52829683,2769.3,2769.2,0.3]
[1643796487745,1.68475688,2769.3,2769.2,0.3]
[1643796488146,0.68475688,2769.3,2769.2,0.3]
[1643796488591,2.52577407,2769.3,2769.2,0.3]
[1643796488799,3.52577407,2769.3,2769.2,0.3]
[1643796488995,1.68475688,2769.3,2769.2,0.3]
[1643796489596,0.68475688,2769.3,2769.2,0.3]
[1643796490396,1.83866765,2769.3,2769.2,0.3]
[1643796490797,2.83866765,2769.3,2769.2,0.3]
[1643796492846,1.0,2769.3,2769.2,0.3]
[1643796493044,4.37126348,2769.3,2769.2,0.3]
[1643796494546,2.52906097,2769.3,2769.2,0.3]
[1643796494748,3.21630478,2769.3,2769.2,0.3]
[1643796496293,5.04926897,2769.3,2769.2,0.3]
[1643796496694,3.21630478,2769.3,2769.2,0.3]
[1643796497500,4.361167,2769.3,2769.2,0.3]
[1643796499404,2.52906097,2769.3,2769.2,0.3]
[1643796499601,3.21643627,2769.3,2769.2,0.3]
[1643796501242,4.35798901,2769.3,2769.2,0.3]
[1643796501846,2.52906097,2769.3,2769.2,0.3]
[1643796502445,3.21640041,2769.3,2769.2,0.3]
[1643796502945,3.21640041,2769.3,2769.1,0.47503841]
[1643796503145,1.52906097,2769.2,2769.1,0.47503841]
[1643796504085,3.42785251,2769.2,2769.1,0.47503841]
[1643796504286,2.21640041,2769.2,2769.1,0.47503841]
[1643796509054,1.52906097,2769.2,2769.1,0.47503841]
[1643796510055,1.52906097,2769.3,2769.1,0.47503841]
[1643796513412,2.21640041,2769.3,2769.1,0.47503841]
[1643796514412,1.52906097,2769.2,2769.1,0.47503841]
[1643796514613,1.52906097,2769.3,2769.1,0.47503841]
[1643796515239,2.21640041,2769.3,2769.1,0.47503841]
[1643796516845,1.52884223,2769.2,2769.1,0.47503841]
[1643796517042,0.1804,2769.5,2769.1,0.47503841]
[1643796517242,0.68733944,2769.7,2769.2,0.3]
[1643796517443,0.1804,2769.6,2769.3,0.90266]
[1643796517643,0.1804,2769.6,2769.5,0.42425006]
[1643796517846,0.1804,2769.7,2769.5,0.42425006]
[1643796518045,0.68733944,2769.8,2769.6,1.80531]
[1643796518245,0.68733944,2769.8,2769.6,2.10531]
[1643796518442,0.68733944,2769.7,2769.6,2.10531]
[1643796518700,0.68733944,2769.8,2769.6,2.10531]
[1643796519801,0.68733944,2769.8,2769.6,4.81327]
[1643796520500,0.68733944,2769.9,2769.6,4.81327]
[1643796521103,0.68733944,2769.8,2769.6,4.81327]
[1643796521503,0.68733944,2769.9,2769.6,4.81327]
[1643796522008,0.68733944,2769.9,2769.7,1.82554296]
[1643796522339,0.68733944,2769.9,2769.7,2.70803]
[1643796523144,0.68733944,2769.9,2769.7,1.07737153]
[1643796524846,0.68733944,2769.9,2769.7,1.98005153]
[1643796526698,0.68733944,2769.9,2769.7,2.01225776]
[1643796527105,0.68733944,2769.9,2769.7,1.98005153]
[1643796528107,0.68733944,2770.0,2769.7,1.98005153]
[1643796529506,0.68733944,2769.9,2769.7,1.98005153]
[1643796529951,2.72104689,2769.9,2769.7,0.90268]
[1643796530450,1.0,2769.8,2769.7,0.90268]
[1643796530752,2.27407948,2769.8,2769.7,0.90268]
[1643796532049,4.16165344,2769.8,2769.7,0.90268]
[1643796532474,3.94972235,2769.8,2769.7,0.90268]
[1643796532856,2.50414839,2769.8,2769.7,0.90268]
[1643796533055,3.87586856,2769.8,2769.7,0.90268]
[1643796533456,1.34504,2769.7,2769.5,1.227841]
[1643796533696,1.1454,2769.6,2769.5,0.144431]
[1643796534103,2.1454,2769.6,2769.5,0.144431]
[1643796534700,5.61027586,2769.6,2769.5,0.144431]
[1643796535099,5.61027586,2769.6,2769.4,0.82305758]
[1643796535299,2.4510036,2769.5,2769.4,0.3]
[1643796535498,2.9740036,2769.5,2769.2,2.10607]
[1643796535702,0.442,2769.3,2769.2,2.10607]
[1643796535900,3.84624027,2769.3,2769.2,2.10607]
[1643796536099,2.93195346,2769.3,2769.2,2.10607]
[1643796536298,3.93195346,2769.3,2769.2,2.10607]
[1643796536498,4.61758067,2769.3,2769.2,2.10607]
[1643796536698,3.93195346,2769.3,2769.2,2.10607]
[1643796536899,1.965,2769.3,2769.2,2.10607]
[1643796537104,0.558,2769.3,2769.2,2.10607]
[1643796537351,4.26411696,2769.6,2769.2,2.12707912]
[1643796537352,2.44696015,2769.6,2769.2,2.12707912]
[1643796537557,1.52884918,2769.5,2769.2,2.12792249]
[1643796537752,1.52884918,2769.4,2769.2,2.10607]
[1643796537952,1.52884918,2769.3,2769.2,2.10607]
[1643796538151,2.44696015,2769.8,2769.4,1.80415623]
[1643796538352,1.5288597,2769.7,2769.4,1.20271]
[1643796538555,1.5288597,2769.7,2769.5,0.1805]
[1643796539152,1.5288597,2769.6,2769.5,0.1805]
[1643796539553,1.5288597,2769.7,2769.5,1.98599]
[1643796539753,1.5288597,2769.6,2769.5,1.98599]
[1643796540161,1.5288597,2769.9,2769.5,1.98599]
[1643796540354,4.0555596,2770.1,2769.5,1.98599]
[1643796540355,1.5288597,2769.8,2769.5,1.98599]
[1643796540656,1.5288597,2769.7,2769.5,1.98599]
[1643796540854,1.5288597,2769.6,2769.5,1.98599]
[1643796541494,1.5288597,2769.8,2769.5,1.98599]
[1643796541696,1.5288597,2769.8,2769.6,0.90274]
[1643796542196,0.1804,2770.2,2769.6,0.90274]
[1643796542197,1.5288597,2769.7,2769.6,2.10547]
[1643796542600,0.91428681,2770.1,2769.6,2.10547]
[1643796542803,2.44314651,2770.1,2769.8,0.90266]
[1643796543199,2.44314651,2770.1,2769.8,0.90267]
[1643796543799,2.44314651,2770.1,2770.0,0.3]
[1643796545247,3.34585651,2770.1,2770.0,0.3]
[1643796545646,4.34585651,2770.1,2770.0,0.3]
[1643796545849,6.19681098,2770.1,2770.0,0.3]
[1643796546847,4.34585651,2770.1,2770.0,0.3]
[1643796547451,6.27627476,2770.1,2770.0,0.3]
[1643796547960,5.36198795,2770.1,2770.0,0.3]
[1643796548890,5.54238795,2770.1,2770.0,0.3]
[1643796549093,6.96830035,2770.1,2769.4,1.80577]
[1643796549295,1.91419309,2769.6,2769.4,1.80577]
[1643796549491,2.99508067,2769.5,2769.4,1.80577]
[1643796549892,4.52394037,2769.5,2769.4,1.80577]
[1643796550092,5.52394037,2769.5,2769.4,1.80577]
[1643796550497,5.52394037,2769.5,2769.4,2.10577]
[1643796551996,5.52394037,2769.5,2769.4,0.3]
[1643796552196,3.21446211,2769.5,2769.4,0.3]
[1643796553646,2.5288597,2769.5,2769.4,0.3]
[1643796553845,3.21446211,2769.5,2769.4,0.3]
[1643796554044,2.5288597,2769.5,2769.4,0.3]
[1643796556395,3.21446211,2769.5,2769.4,0.3]
[1643796556697,2.5288597,2769.5,2769.4,0.3]
[1643796558901,5.97e-05,2769.5,2769.4,0.4804]
[1643796559102,1.09459309,2770.1,2769.4,0.4804]
[1643796559103,0.68560241,2770.0,2769.4,0.4804]
[1643796559302,0.68560241,2770.0,2769.5,1.08303]
[1643796560043,0.68560241,2769.9,2769.5,1.08303]
[1643796560344,0.68560241,2769.7,2769.6,0.90262]
[1643796560543,0.68560241,2769.7,2769.6,1.20262]
[1643796560943,1.90282,2769.8,2769.6,1.20262]
[1643796561345,0.68550207,2769.7,2769.6,1.20262]
[1643796563150,0.68550207,2769.7,2769.5,0.65490779]
[1643796563990,0.68550207,2769.6,2769.5,0.65490779]
[1643796564191,0.68550207,2769.6,2769.4,2.70789]
[1643796564590,0.90284,2769.7,2769.4,2.70789]
[1643796564591,0.68550207,2769.5,2769.4,2.70789]
[1643796564790,2.80057825,2769.5,2769.4,1.80526]
[1643796564992,2.11507618,2769.5,2769.4,1.80526]
[1643796565189,2.11507618,2769.5,2769.4,2.10526]
[1643796565589,1.09459309,2769.6,2769.4,2.10526]
[1643796565792,1.09459309,2769.6,2769.4,0.3]
[1643796565793,2.43719309,2769.5,2769.4,0.3]
[1643796565999,1.61759309,2769.5,2769.3,1.80582]
[1643796566195,1.09459309,2769.4,2769.3,1.80582]
[1643796566391,0.7034,2769.4,2769.3,1.80582]
[1643796566590,1.7034,2769.4,2769.3,1.80582]
[1643796566791,2.61759309,2769.4,2769.3,1.80582]
[1643796566992,1.7034,2769.4,2769.3,1.80582]
[1643796567350,1.7034,2769.4,2769.3,2.10582]
[1643796567351,2.61759309,2769.4,2769.3,2.10582]
[1643796567550,1.7034,2769.4,2769.3,2.10582]
[1643796567950,3.74378772,2769.4,2769.3,2.10582]
[1643796569852,3.56338772,2769.4,2769.3,2.10582]
[1643796570455,1.523,2769.4,2769.3,2.10582]
[1643796570855,2.20847681,2769.4,2769.3,2.10582]
[1643796571096,1.68547681,2769.4,2769.3,2.10582]
[1643796571298,0.86587681,2769.5,2769.3,2.10582]
[1643796571496,0.90284,2769.7,2769.3,3.91147]
[1643796571497,0.86587681,2769.7,2769.3,3.91147]
[1643796571796,0.68547681,2769.7,2769.4,1.20277]
[1643796572198,0.68547681,2769.7,2769.5,1.80549]
[1643796574200,0.68547681,2769.7,2769.5,2.49930509]
[1643796575045,0.68547681,2769.6,2769.5,2.49930509]
[1643796579599,2.21431551,2769.6,2769.5,2.49930509]
[1643796581608,2.21478965,2769.6,2769.5,2.49930509]
[1643796582206,1.5288387,2769.6,2769.5,2.49930509]
[1643796582456,1.5288387,2769.6,2769.5,1.80549]
[1643796583255,1.5288387,2769.6,2769.5,0.174768]
[1643796583656,2.21478965,2769.7,2769.5,0.174768]
[1643796583856,1.5288387,2769.6,2769.5,0.174768]
[1643796584259,2.21478965,2769.7,2769.5,0.174768]
[1643796584454,1.5288387,2769.6,2769.5,0.174768]
[1643796584854,2.21478965,2769.7,2769.5,0.174768]
[1643796585055,1.5288387,2769.6,2769.5,0.174768]
[1643796585655,2.21478965,2769.7,2769.5,0.174768]
[1643796585856,1.5288387,2769.6,2769.5,0.174768]
[1643796586097,2.21478965,2769.7,2769.5,0.174768]
[1643796586299,1.5288387,2769.6,2769.5,0.174768]
[1643796586702,0.68595095,2769.6,2769.5,0.174768]
[1643796588505,1.5288387,2769.6,2769.5,0.174768]
[1643796588908,3.53422792,2769.6,2769.5,0.174768]
[1643796589109,4.44842101,2769.6,2769.5,0.174768]
[1643796589307,5.05722792,2769.6,2769.3,0.90302]
[1643796589512,2.44371128,2769.5,2769.3,0.90302]
[1643796589846,1.95066045,2769.4,2769.3,0.90302]
[1643796590144,3.47949915,2769.4,2769.3,1.20302]
[1643796590345,4.47949915,2769.4,2769.3,1.20302]
[1643796591144,5.39437173,2769.4,2769.3,1.20302]
[1643796592451,5.91737173,2769.4,2769.3,1.20302]
[1643796594098,6.01437173,2769.4,2769.3,1.20302]
[1643796598253,4.06371128,2769.4,2769.3,1.20302]
[1643796598553,3.1488387,2769.4,2769.3,1.20302]
[1643796599152,1.6258387,2769.4,2769.3,1.20302]
[1643796599553,1.6258387,2769.4,2769.3,1.38342]
[1643796600058,0.78267379,2769.4,2769.3,1.38342]
[1643796600254,2.31151249,2769.4,2769.3,1.38342]
[1643796601307,2.31151249,2769.4,2769.3,1.20302]
[1643796602006,5.1832006,2769.4,2769.3,1.20302]
[1643796602207,3.31151249,2769.4,2769.3,1.20302]
[1643796603309,4.21447249,2769.4,2769.3,0.3]
[1643796603510,3.21447249,2769.4,2769.3,0.3]
[1643796603709,4.21447249,2769.4,2769.2,1.55851085]
[1643796604111,1.6258387,2769.3,2769.2,1.55851085]
[1643796604311,2.6258387,2769.3,2769.2,1.37811085]
[1643796604510,4.49270708,2769.3,2769.2,1.37811085]
[1643796604713,2.6258387,2769.3,2769.2,1.37811085]
[1643796605353,1.6258387,2769.3,2769.2,1.37811085]
[1643796606152,1.6258387,2769.3,2769.2,1.67811085]
[1643796607353,2.31151249,2769.3,2769.2,1.67811085]
[1643796607561,3.31151249,2769.3,2769.2,1.67811085]
[1643796609097,5.17121398,2769.3,2769.2,1.67811085]
[1643796609295,3.31151249,2769.3,2769.2,1.67811085]
[1643796609495,2.6258387,2769.3,2769.2,1.67811085]
[1643796609896,3.31166478,2769.3,2769.2,1.67811085]
[1643796610896,2.6258387,2769.3,2769.2,1.67811085]
[1643796612099,4.46890986,2769.3,2769.2,1.67811085]
[1643796612563,2.6258387,2769.3,2769.2,1.67811085]
[1643796612962,3.31169105,2769.3,2769.2,1.67811085]
[1643796613161,3.31168997,2769.3,2769.2,1.67811085]
[1643796619950,5.15168997,2769.3,2769.2,1.67811085]
[1643796620355,3.31168997,2769.3,2769.2,1.67811085]
[1643796620756,2.31168997,2769.3,2769.2,1.67811085]
[1643796620954,1.6258387,2769.3,2769.2,1.67811085]
[1643796621854,2.31168997,2769.3,2769.2,1.67811085]
[1643796622462,3.31168997,2769.3,2769.2,1.67811085]
[1643796622661,2.6258387,2769.3,2769.2,1.67811085]
[1643796622862,5.16365591,2769.3,2769.2,1.67811085]
[1643796623259,5.16365591,2769.3,2769.2,0.04727808]
[1643796623462,3.31185951,2769.3,2769.1,1.08339]
[1643796623706,1.6258387,2769.2,2769.1,0.90299]
[1643796624107,2.6258387,2769.2,2769.1,0.90299]
[1643796624507,4.49474907,2769.2,2769.1,0.90299]
[1643796624906,2.6258387,2769.2,2769.1,0.90299]
[1643796625307,2.6258387,2769.2,2769.1,1.20299]
[1643796625308,3.31185951,2769.2,2769.1,1.20299]
[1643796625909,5.18114789,2769.2,2769.1,1.20299]
[1643796626112,5.1681558,2769.2,2769.1,1.20299]
[1643796626309,5.18890869,2769.2,2769.1,1.20299]
[1643796626511,5.63268788,2769.2,2769.1,0.90299]
[1643796626711,6.54756046,2769.2,2769.1,0.90299]
[1643796627553,6.54756046,2769.2,2769.1,1.20299]
[1643796627756,6.72796046,2769.2,2769.1,0.3]
[1643796628156,7.25096046,2769.2,2769.0,0.1804]
[1643796628361,10.41330818,2769.1,2769.0,0.1804]
[1643796628654,11.11670818,2769.1,2769.0,0.1804]
[1643796628855,12.11670818,2769.1,2769.0,0.1804]
[1643796629055,6.78799782,2769.1,2769.0,0.1804]
[1643796629457,10.5292387,2769.1,2768.6,1.80641]
[1643796629655,10.5292387,2769.1,2768.4,2.23691]
[1643796629656,1.01190769,2768.9,2768.4,2.23691]
[1643796629856,0.097,2768.5,2768.4,1.80651]
[1643796630060,0.62,2768.5,2768.4,1.80651]
[1643796630256,2.1488387,2768.5,2768.4,1.80651]
[1643796630455,2.1488387,2768.5,2768.2,0.1804]
[1643796630661,0.097,2768.3,2767.8,0.1806]
[1643796630856,0.097,2768.3,2767.8,1.9874]
[1643796630857,0.097,2768.1,2767.8,1.9874]
[1643796631111,0.097,2767.9,2767.8,1.9874]
[1643796631311,1.6258387,2767.9,2767.8,1.9874]
[1643796632010,1.6258387,2767.9,2767.8,4.09401]
[1643796636259,0.097,2767.9,2767.8,4.09401]
[1643796638061,0.097,2768.3,2767.8,4.09401]
[1643796638264,0.097,2768.1,2767.9,0.90317]
[1643796638460,0.097,2768.1,2768.0,0.4806]
[1643796638705,0.097,2768.1,2768.0,0.3]
[1643796643156,0.097,2768.2,2768.0,0.3]
[1643796643355,1.62621114,2768.1,2768.0,0.3]
[1643796647610,1.62621114,2768.1,2767.9,1.37609819]
[1643796647810,1.62621114,2768.0,2767.9,1.37609819]
[1643796648009,1.62621114,2768.0,2767.9,0.90317]
[1643796649112,1.62621114,2768.0,2767.9,1.20317]
[1643796649519,1.62621114,2768.0,2767.9,0.3]
[1643796649712,1.62621114,2768.0,2767.8,3.00999]
[1643796649950,0.2776,2768.2,2767.8,3.00999]
[1643796650150,0.097,2768.0,2767.8,3.00999]
[1643796650352,0.097,2768.0,2767.8,2.10661]
[1643796650353,1.52942733,2767.9,2767.8,2.10661]
[1643796650552,3.63527514,2767.9,2767.8,2.10661]
[1643796650754,1.62642733,2767.9,2767.8,0.3]
[1643796651153,1.62642733,2767.9,2767.7,1.2033]
[1643796651351,1.62642733,2767.8,2767.7,1.2033]
[1643796651852,1.62642733,2767.8,2767.7,2.10669]
[1643796652455,1.62642733,2767.8,2767.7,2.251215]
[1643796653462,3.62642733,2767.8,2767.6,0.55426214]
[1643796653711,3.62642733,2767.8,2767.0,0.01240187]
[1643796653712,4.62642733,2767.7,2767.0,0.01240187]
[1643796653913,4.62642733,2767.7,2766.9,7.3601]
[1643796653914,0.097,2767.5,2766.9,7.3601]
[1643796654110,0.097,2767.3,2766.9,6.9295]
[1643796654311,0.097,2767.1,2766.8,1.07535]
[1643796654512,0.097,2766.9,2766.8,1.07535]
[1643796654916,0.097,2767.1,2766.8,1.07535]
[1643796655114,0.097,2766.9,2766.8,1.07535]
[1643796655714,0.097,2766.9,2766.7,1.08426]
[1643796656113,0.097,2766.9,2766.8,0.3]
[1643796656314,0.097,2766.9,2766.8,0.4807]
[1643796657119,0.097,2766.9,2766.8,0.1807]
[1643796658369,0.097,2766.9,2766.8,0.4807]
[1643796659568,0.097,2766.9,2766.8,0.3]
[1643796659974,0.097,2767.1,2766.8,1.20364]
[1643796660169,0.097,2767.1,2766.7,0.90366]
[1643796660370,0.097,2766.9,2766.7,0.90366]
[1643796660971,0.097,2766.9,2766.7,0.90367]
[1643796660972,0.50920498,2766.9,2766.7,0.90367]
[1643796661211,0.50920498,2766.9,2766.5,1.1157432]
[1643796661212,0.097,2766.7,2766.5,1.1157432]
[1643796661419,0.5323,2767.0,2766.5,1.1157432]
[1643796661420,0.2777,2766.6,2766.5,1.1157432]
[1643796661610,0.097,2766.6,2766.5,1.1157432]
[1643796662220,0.48565538,2766.6,2766.5,1.1157432]
[1643796662419,1.00865538,2766.6,2766.5,1.4157432]
[1643796662623,2.71960378,2766.6,2766.5,1.4157432]
[1643796663223,1.18935538,2766.6,2766.5,1.4157432]
[1643796663719,1.00865538,2766.6,2766.5,1.4157432]
[1643796665469,11.23902776,2766.6,2766.5,7.781e-05]
[1643796665766,10.71972776,2766.6,2766.5,7.781e-05]
[1643796665966,10.33107238,2766.6,2766.5,7.781e-05]
[1643796666169,10.47267238,2766.6,2766.5,7.781e-05]
[1643796666369,18.02787237,2766.6,2766.5,7.781e-05]
[1643796666569,18.03427237,2766.6,2766.5,7.781e-05]
[1643796666768,18.05027237,2766.6,2766.5,7.781e-05]
[1643796666970,18.4755248,2766.6,2766.5,7.781e-05]
[1643796667172,18.4771248,2766.6,2766.5,7.781e-05]
[1643796667472,18.4771248,2766.6,2765.3,0.1807]
[1643796667473,0.097,2765.8,2765.3,0.1807]
[1643796667671,0.097,2765.6,2765.3,0.1807]
[1643796667875,3.297,2765.4,2765.3,0.1807]
[1643796668171,0.62,2765.4,2765.3,0.1807]
[1643796668371,0.62,2765.4,2765.1,0.1807]
[1643796668606,0.097,2765.1,2764.9,0.1807]
[1643796669507,0.097,2765.1,2764.7,0.1807]
[1643796670909,0.097,2765.1,2764.7,0.4807]
[1643796671314,0.097,2765.1,2764.7,0.1807]
[1643796671514,0.097,2765.1,2764.7,0.85474792]
[1643796671911,0.097,2765.1,2764.7,0.1807]
[1643796672111,0.097,2764.8,2764.6,7.77]
[1643796672764,0.097,2764.8,2764.3,0.1807]
[1643796674163,0.097,2764.8,2764.3,0.4807]
[1643796675866,1.99835542,2764.8,2764.3,0.4807]
[1643796676141,2.68543059,2765.3,2764.5,0.43478216]
[1643796676142,1.086,2765.3,2764.5,0.43478216]
[1643796676323,1.086,2765.3,2764.8,0.32486477]
[1643796676518,1.086,2765.3,2764.9,0.1807]
[1643796677118,1.086,2765.3,2765.0,1.95065811]
[1643796677430,1.086,2765.3,2765.1,1.25671]
[1643796677824,1.086,2765.3,2765.2,0.3]
[1643796681463,1.086,2765.3,2765.2,0.74476164]
[1643796683160,1.086,2765.3,2765.2,0.44476164]
[1643796684603,1.086,2765.3,2765.2,0.74476164]
[1643796685807,1.0837,2766.0,2765.3,5.65405]
[1643796686015,1.0837,2766.0,2765.4,0.9161869]
[1643796686215,0.1807,2766.0,2765.4,2.5920669]
[1643796686410,0.903,2766.4,2765.6,1.80777]
[1643796686411,0.1807,2766.3,2765.6,1.80777]
[1643796686609,0.1807,2766.3,2765.6,2.10777]
[1643796686808,0.1807,2766.3,2766.1,0.91511793]
[1643796687009,0.903,2765.8,2765.7,1.20387]
[1643796687859,0.903,2765.8,2765.7,1.62807195]
[1643796688057,0.903,2765.8,2765.7,2.44490122]
[1643796688457,0.903,2765.8,2765.7,2.74490122]
[1643796689259,0.903,2765.8,2765.7,1.92807195]
[1643796689461,0.903,2765.8,2765.7,0.6]
[1643796689862,0.903,2765.8,2765.6,0.6]
[1643796690260,0.903,2765.8,2765.5,0.1807]
[1643796690462,0.903,2765.8,2765.4,1.89294628]
[1643796690958,0.903,2765.8,2765.5,0.90396]
[1643796692103,0.903,2765.8,2765.6,0.90395]
[1643796692304,0.903,2765.8,2765.7,0.3]
[1643796693311,0.903,2765.8,2765.6,0.3]
[1643796693510,1.0837,2765.8,2765.5,0.1807]
[1643796693709,1.0837,2765.8,2765.4,1.37588]
[1643796694964,1.0837,2765.8,2765.5,1.61167182]
[1643796696166,0.903,2765.8,2765.5,1.61167182]
[1643796696369,1.0,2766.7,2765.7,6.7]
[1643796696582,4.82534752,2766.9,2765.8,9.73582864]
[1643796696583,0.1807,2766.5,2765.8,9.73582864]
[1643796696776,0.1807,2766.5,2766.3,0.01293817]
[1643796696968,0.94640229,2766.9,2766.4,0.1807]
[1643796697166,0.94640229,2766.9,2766.4,0.4807]
[1643796697366,0.94640229,2766.9,2766.5,0.3]
[1643796697571,0.94640229,2766.9,2766.5,0.32368192]
[1643796697971,0.94640229,2766.9,2766.5,0.3]
[1643796698612,1.53043676,2766.8,2766.5,0.3]
[1643796698812,0.1807,2767.0,2766.5,0.3]
[1643796699012,1.53042251,2766.9,2766.5,1.20355]
[1643796699611,1.53042251,2766.9,2766.6,1.76036297]
[1643796700012,1.53042251,2766.8,2766.7,1.20356]
[1643796700413,1.53042251,2767.3,2766.7,1.20356]
[1643796700716,0.38555756,2766.9,2766.7,0.3]
[1643796700921,1.71112251,2766.8,2766.7,0.3]
[1643796701114,1.71112251,2766.8,2766.5,1.37548]
[1643796701315,1.53042251,2766.7,2766.5,1.37548]
[1643796701514,0.1807,2766.6,2766.5,1.37548]
[1643796701719,1.71112251,2766.6,2766.5,1.37548]
[1643796701914,1.53042251,2766.6,2766.5,1.37548]
[1643796702113,1.53042251,2766.7,2766.5,1.37548]
[1643796702362,0.1807,2766.6,2766.5,1.07548]
[1643796702569,1.71112251,2766.6,2765.9,0.4307]
[1643796702772,1.71112251,2766.6,2765.9,0.1807]
[1643796702773,1.53042251,2766.5,2765.9,0.1807]
[1643796702971,0.1807,2766.4,2765.9,0.1807]
[1643796703170,1.53042251,2766.3,2765.9,0.1807]
[1643796703367,0.32918854,2766.0,2765.9,0.1807]
[1643796703568,1.53042251,2766.0,2765.9,0.1807]
[1643796703769,1.53042251,2766.1,2765.9,0.1807]
[1643796703969,1.53042251,2766.0,2765.9,0.1807]
[1643796704273,1.48042251,2766.0,2765.9,0.1807]
[1643796704470,0.1807,2766.4,2765.9,0.1807]
[1643796704668,0.1807,2766.5,2765.7,1.836773]
[1643796704870,0.86124523,2766.5,2765.7,1.836773]
[1643796705268,0.1807,2766.5,2765.7,1.836773]
[1643796705869,0.39077953,2766.2,2765.7,1.836773]
[1643796706112,1.95474943,2766.1,2765.7,0.3]
[1643796706313,2.13544943,2766.1,2765.7,0.3]
[1643796706510,2.13544943,2766.1,2765.3,0.4807]
[1643796706710,2.13544943,2766.1,2765.3,0.1807]
[1643796707111,0.31831729,2765.7,2765.3,0.1807]
[1643796708518,2.13544943,2766.1,2765.3,0.1807]
[1643796708925,0.43717894,2765.2,2765.0,0.1807]
[1643796709120,1.6523,2765.2,2765.0,0.1807]
[1643796709318,1.6523,2765.2,2764.5,0.25]
[1643796709522,0.1807,2765.1,2764.3,0.1807]
[1643796709962,0.89728954,2765.0,2764.3,0.1807]
[1643796710764,0.523,2765.0,2764.3,0.1807]
[1643796711362,0.523,2765.0,2764.3,1.08505]
[1643796711563,0.523,2765.0,2764.3,1.38505]
[1643796711963,0.91141888,2765.0,2764.3,1.38505]
[1643796712363,0.91141888,2765.0,2764.3,1.529733]
[1643796712765,0.523,2765.0,2764.3,1.38505]
[1643796713167,0.523,2765.0,2764.4,0.0231168]
[1643796713366,0.523,2765.0,2764.3,1.38505]
[1643796713609,0.523,2765.0,2764.3,1.08505]
[1643796713810,0.523,2765.0,2764.3,0.1807]
[1643796713811,1.89398385,2764.9,2764.3,0.1807]
[1643796714313,2.89398385,2764.9,2764.3,0.1807]
[1643796714918,3.79849385,2764.9,2764.3,0.1807]
[1643796715311,3.79849385,2764.9,2764.3,0.1194333]
[1643796715512,4.11734537,2764.9,2764.3,0.1194333]
[1643796715714,3.79849385,2764.9,2764.3,0.1194333]
[1643796715913,0.7037,2765.0,2764.3,0.1194333]
[1643796716113,0.523,2765.0,2764.3,0.1194333]
[1643796716312,2.63733176,2765.0,2764.3,0.1194333]
[1643796716712,1.0,2764.9,2764.3,0.1194333]
[1643796716924,0.01287308,2764.4,2763.9,0.25]
[1643796717118,0.01287308,2764.4,2763.3,0.1807]
[1643796717119,0.7037,2764.3,2763.3,0.1807]
[1643796717362,0.7037,2764.3,2763.8,0.31880621]
[1643796717566,0.7037,2764.3,2763.6,0.78390673]
[1643796718161,1.60851,2764.3,2763.6,1.08390673]
[1643796718360,2.60851,2764.3,2763.5,7.3638]
[1643796718559,2.60851,2764.3,2763.6,0.39478575]
[1643796718761,2.60851,2764.3,2763.4,8.37466]
[1643796719162,1.60851,2764.3,2763.4,8.37466]
[1643796719362,1.60851,2764.3,2763.6,0.84595194]
[1643796719562,1.42781,2764.3,2763.6,0.84595194]
[1643796720167,2.42781,2764.3,2763.4,8.67466]
[1643796720362,1.42781,2764.3,2763.4,8.67466]